[Event "Betsys MČR v online bleskovém šachu 2021"]
[Site "Chess.com"]
[Date "2021.04.17"]
[Round "10"]
[White "Emicka1330"]
[Black "EliasD123"]
[Result "0-1"]
[WhiteElo "1539"]
[BlackElo "1328"]
[TimeControl "180+1"]
[EndTime "10:38:41 PDT"]
[Termination "Uživatel EliasD123 zvítězil matem"]

1. e4 {[%clk 0:02:58.1]} 1... e5 {[%clk 0:02:59.2]} 2. d4 {[%clk 0:02:57.8]}
2... exd4 {[%clk 0:02:58.5]} 3. Bc4 {[%clk 0:02:57.9]} 3... Nc6 {[%clk
0:02:57.8]} 4. Nf3 {[%clk 0:02:57.3]} 4... d6 {[%clk 0:02:56.9]} 5. Nxd4 {[%clk
0:02:54.5]} 5... Nxd4 {[%clk 0:02:56.6]} 6. Qxd4 {[%clk 0:02:53.9]} 6... c5
{[%clk 0:02:56.9]} 7. Qd1 {[%clk 0:02:51.3]} 7... Nf6 {[%clk 0:02:56.7]} 8. Nc3
{[%clk 0:02:49.9]} 8... Be6 {[%clk 0:02:52.1]} 9. Bb5+ {[%clk 0:02:46.6]} 9...
Bd7 {[%clk 0:02:49.5]} 10. Bd3 {[%clk 0:02:42.2]} 10... Be7 {[%clk 0:02:45.2]}
11. O-O {[%clk 0:02:42.1]} 11... O-O {[%clk 0:02:45.1]} 12. Bf4 {[%clk
0:02:40.5]} 12... Bc6 {[%clk 0:02:40.2]} 13. Qe2 {[%clk 0:02:31]} 13... Qd7
{[%clk 0:02:24.9]} 14. Rad1 {[%clk 0:02:29.9]} 14... Rfe8 {[%clk 0:02:19]} 15.
Bc4 {[%clk 0:02:20.5]} 15... a6 {[%clk 0:02:06.4]} 16. Rd2 {[%clk 0:02:18.4]}
16... b5 {[%clk 0:02:03.6]} 17. Bd5 {[%clk 0:02:13.1]} 17... Bxd5 {[%clk
0:01:58.8]} 18. Nxd5 {[%clk 0:02:10.3]} 18... Nxd5 {[%clk 0:01:56.2]} 19. Rxd5
{[%clk 0:02:09.3]} 19... Bf6 {[%clk 0:01:54.1]} 20. c3 {[%clk 0:02:06.1]} 20...
Qc6 {[%clk 0:01:51.5]} 21. Bxd6 {[%clk 0:01:51.6]} 21... Qxd5 {[%clk 0:01:38.4]}
22. Bg3 {[%clk 0:01:32.4]} 22... Rxe4 {[%clk 0:01:34.8]} 23. Qc2 {[%clk
0:01:28]} 23... Rae8 {[%clk 0:01:32.5]} 24. h3 {[%clk 0:01:26.9]} 24... Re1
{[%clk 0:01:30.9]} 25. f3 {[%clk 0:01:19]} 25... Rxf1+ {[%clk 0:01:26.8]} 26.
Kxf1 {[%clk 0:01:18.7]} 26... Be5 {[%clk 0:01:17.4]} 27. Bf2 {[%clk 0:01:17.4]}
27... Bh2 {[%clk 0:01:05.1]} 28. a3 {[%clk 0:01:14.2]} 28... Qc4+ {[%clk
0:01:04.1]} 29. Qd3 {[%clk 0:01:04.7]} 29... Qxd3# {[%clk 0:01:03.3]} 0-1

[Event "Betsys MČR v online bleskovém šachu 2021"]
[Site "Chess.com"]
[Date "2021.04.17"]
[Round "10"]
[White "PaulS_CR"]
[Black "jsebesta"]
[Result "1-0"]
[WhiteElo "1839"]
[BlackElo "1630"]
[TimeControl "180+1"]
[EndTime "10:38:42 PDT"]
[Termination "Uživatel PaulS_CR zvítězil po vzdání soupeře"]

1. Nf3 {[%clk 0:03:00.9]} 1... Nf6 {[%clk 0:02:59.4]} 2. d4 {[%clk 0:02:59.5]}
2... g6 {[%clk 0:02:58.3]} 3. Nc3 {[%clk 0:02:57.2]} 3... Bg7 {[%clk 0:02:58.3]}
4. e4 {[%clk 0:02:56.9]} 4... d6 {[%clk 0:02:54]} 5. Bc4 {[%clk 0:02:52.8]} 5...
Bg4 {[%clk 0:02:50.7]} 6. h3 {[%clk 0:02:52.3]} 6... Bxf3 {[%clk 0:02:50.8]} 7.
Qxf3 {[%clk 0:02:51.7]} 7... e5 {[%clk 0:02:50.8]} 8. dxe5 {[%clk 0:02:45.7]}
8... dxe5 {[%clk 0:02:50.8]} 9. Bg5 {[%clk 0:02:43.6]} 9... Qd6 {[%clk
0:02:41.7]} 10. Rd1 {[%clk 0:02:41.4]} 10... Qb6 {[%clk 0:02:38.3]} 11. Bxf6
{[%clk 0:02:38.4]} 11... Qxf6 {[%clk 0:02:33.6]} 12. Qxf6 {[%clk 0:02:31.4]}
12... Bxf6 {[%clk 0:02:32.5]} 13. Ke2 {[%clk 0:02:31]} 13... O-O {[%clk
0:02:31.2]} 14. Nd5 {[%clk 0:02:26.8]} 14... Bd8 {[%clk 0:02:30.6]} 15. c3
{[%clk 0:02:22.9]} 15... Nc6 {[%clk 0:02:30.3]} 16. Bb5 {[%clk 0:02:20.5]} 16...
Ne7 {[%clk 0:02:29.4]} 17. Ne3 {[%clk 0:02:18.4]} 17... c6 {[%clk 0:02:28.7]}
18. Bc4 {[%clk 0:02:17.2]} 18... Bb6 {[%clk 0:02:26.2]} 19. Rd7 {[%clk
0:02:14.6]} 19... Rfe8 {[%clk 0:02:07.7]} 20. Rxb7 {[%clk 0:02:09.4]} 20... Rad8
{[%clk 0:02:00.8]} 21. Rd1 {[%clk 0:02:01.4]} 21... Rxd1 {[%clk 0:01:55.1]} 22.
Nxd1 {[%clk 0:01:58.3]} 22... Kf8 {[%clk 0:01:52.7]} 23. a4 {[%clk 0:01:54.1]}
23... Rd8 {[%clk 0:01:50.2]} 24. b4 {[%clk 0:01:48]} 24... Rd6 {[%clk
0:01:21.4]} 25. a5 {[%clk 0:01:40.9]} 25... Bd8 {[%clk 0:01:20.9]} 26. Rxa7
{[%clk 0:01:39.9]} 26... f5 {[%clk 0:01:14.2]} 27. f3 {[%clk 0:01:35.5]} 27...
fxe4 {[%clk 0:01:13.1]} 28. fxe4 {[%clk 0:01:34.1]} 28... Rf6 {[%clk 0:01:12.6]}
29. Ne3 {[%clk 0:01:29.2]} 29... Ng8 {[%clk 0:01:00.1]} 30. Bxg8 {[%clk
0:01:25.6]} 30... Kxg8 {[%clk 0:01:00]} 31. Ra8 {[%clk 0:01:25.4]} 31... Rf8
{[%clk 0:01:00.2]} 32. Nc4 {[%clk 0:01:23.1]} 32... Kf7 {[%clk 0:00:59.5]} 33.
Nxe5+ {[%clk 0:01:19.7]} 33... Ke6 {[%clk 0:00:56.8]} 34. Nxc6 {[%clk
0:01:19.3]} 1-0

[Event "Betsys MČR v online bleskovém šachu 2021"]
[Site "Chess.com"]
[Date "2021.04.17"]
[Round "10"]
[White "krystofkrizek1"]
[Black "Varinius"]
[Result "0-1"]
[WhiteElo "2133"]
[BlackElo "2415"]
[TimeControl "180+1"]
[EndTime "10:38:45 PDT"]
[Termination "Uživatel Varinius zvítězil po vzdání soupeře"]

1. d4 {[%clk 0:03:00.7]} 1... Nf6 {[%clk 0:02:53.1]} 2. Nf3 {[%clk 0:03:00.4]}
2... a5 {[%clk 0:02:50.2]} 3. b3 {[%clk 0:02:55.1]} 3... a4 {[%clk 0:02:49.6]}
4. Bb2 {[%clk 0:02:55.5]} 4... e6 {[%clk 0:02:49]} 5. c4 {[%clk 0:02:51.5]} 5...
d5 {[%clk 0:02:47]} 6. e3 {[%clk 0:02:48.8]} 6... Bb4+ {[%clk 0:02:44.3]} 7.
Nbd2 {[%clk 0:02:48.6]} 7... a3 {[%clk 0:02:41.3]} 8. Bc1 {[%clk 0:02:47.1]}
8... O-O {[%clk 0:02:41]} 9. Bd3 {[%clk 0:02:45.7]} 9... c5 {[%clk 0:02:41.2]}
10. O-O {[%clk 0:02:45]} 10... Nc6 {[%clk 0:02:40.3]} 11. Qc2 {[%clk 0:02:26.1]}
11... cxd4 {[%clk 0:02:33.7]} 12. Nxd4 {[%clk 0:02:19.8]} 12... e5 {[%clk
0:02:18.5]} 13. Nxc6 {[%clk 0:02:05.5]} 13... bxc6 {[%clk 0:02:19.4]} 14. Nb1
{[%clk 0:01:48.4]} 14... Qe7 {[%clk 0:02:05.8]} 15. Bd2 {[%clk 0:01:45.8]} 15...
Bd6 {[%clk 0:02:03.7]} 16. Nc3 {[%clk 0:01:38.7]} 16... e4 {[%clk 0:01:58.8]}
17. Be2 {[%clk 0:01:37.3]} 17... Qe5 {[%clk 0:01:59]} 18. g3 {[%clk 0:01:32]}
18... Bh3 {[%clk 0:01:58.4]} 19. cxd5 {[%clk 0:01:12.1]} 19... cxd5 {[%clk
0:01:54.9]} 20. Rfd1 {[%clk 0:00:51.6]} 20... Rac8 {[%clk 0:01:53.7]} 21. Rac1
{[%clk 0:00:31.9]} 21... Bg4 {[%clk 0:01:51.4]} 22. Qb1 {[%clk 0:00:17.8]} 22...
Qh5 {[%clk 0:01:41.9]} 23. h4 {[%clk 0:00:11.5]} 23... Bxe2 {[%clk 0:01:40.4]}
0-1

[Event "Betsys MČR v online bleskovém šachu 2021"]
[Site "Chess.com"]
[Date "2021.04.17"]
[Round "10"]
[White "CZMaster666"]
[Black "Innerz98"]
[Result "0-1"]
[WhiteElo "1909"]
[BlackElo "2121"]
[TimeControl "180+1"]
[EndTime "10:38:47 PDT"]
[Termination "Uživatel Innerz98 zvítězil po vzdání soupeře"]

1. e4 {[%clk 0:03:00.9]} 1... e5 {[%clk 0:02:59.7]} 2. Nf3 {[%clk 0:03:00.1]}
2... Nf6 {[%clk 0:03:00]} 3. Nxe5 {[%clk 0:02:59.1]} 3... d6 {[%clk 0:02:59.1]}
4. Nf3 {[%clk 0:02:58.9]} 4... Nxe4 {[%clk 0:02:59.2]} 5. d4 {[%clk 0:02:59.4]}
5... d5 {[%clk 0:02:59.5]} 6. Bd3 {[%clk 0:03:00.1]} 6... Be7 {[%clk 0:03:00]}
7. O-O {[%clk 0:03:00.7]} 7... Nc6 {[%clk 0:03:00.5]} 8. Re1 {[%clk 0:03:01.3]}
8... Nf6 {[%clk 0:03:00.3]} 9. c4 {[%clk 0:02:59.6]} 9... O-O {[%clk 0:03:00.3]}
10. Nc3 {[%clk 0:02:58.5]} 10... Nb4 {[%clk 0:02:59.8]} 11. Bb1 {[%clk
0:02:52.4]} 11... dxc4 {[%clk 0:02:58]} 12. a3 {[%clk 0:02:52.7]} 12... Nbd5
{[%clk 0:02:57.4]} 13. Nxd5 {[%clk 0:02:48]} 13... Nxd5 {[%clk 0:02:58.3]} 14.
Qc2 {[%clk 0:02:47.8]} 14... g6 {[%clk 0:02:56.3]} 15. Qxc4 {[%clk 0:02:47.5]}
15... Be6 {[%clk 0:02:51.3]} 16. Bh6 {[%clk 0:02:46.3]} 16... Re8 {[%clk
0:02:47.1]} 17. Ne5 {[%clk 0:02:39.8]} 17... Bg5 {[%clk 0:02:41.1]} 18. Bxg5
{[%clk 0:02:30.9]} 18... Qxg5 {[%clk 0:02:42]} 19. Qd3 {[%clk 0:02:27.3]} 19...
Nf4 {[%clk 0:02:33.5]} 20. Qf3 {[%clk 0:02:15.7]} 20... f6 {[%clk 0:02:09.9]}
21. Bc2 {[%clk 0:01:23.8]} 21... fxe5 {[%clk 0:01:48.7]} 22. Rxe5 {[%clk
0:01:24.7]} 22... Qf6 {[%clk 0:01:48.6]} 23. Rae1 {[%clk 0:01:13.8]} 23... Nh3+
{[%clk 0:01:42.5]} 24. Kf1 {[%clk 0:00:40.6]} 24... Bc4+ {[%clk 0:01:30.1]} 25.
Bd3 {[%clk 0:00:37.7]} 25... Bxd3+ {[%clk 0:01:29]} 0-1

[Event "Betsys MČR v online bleskovém šachu 2021"]
[Site "Chess.com"]
[Date "2021.04.17"]
[Round "10"]
[White "matykov"]
[Black "sajmon8"]
[Result "1-0"]
[WhiteElo "2007"]
[BlackElo "1663"]
[TimeControl "180+1"]
[EndTime "10:38:51 PDT"]
[Termination "Uživatel matykov zvítězil po vzdání soupeře"]

1. e4 {[%clk 0:03:00.9]} 1... e6 {[%clk 0:02:56]} 2. d4 {[%clk 0:03:00.2]} 2...
d5 {[%clk 0:02:55.1]} 3. Nc3 {[%clk 0:03:00.9]} 3... Nf6 {[%clk 0:02:52.9]} 4.
Bg5 {[%clk 0:03:00.4]} 4... Be7 {[%clk 0:02:52.3]} 5. e5 {[%clk 0:02:59.9]} 5...
Nfd7 {[%clk 0:02:52.2]} 6. h4 {[%clk 0:03:00.5]} 6... a6 {[%clk 0:02:51]} 7. Qg4
{[%clk 0:02:58.5]} 7... Rg8 {[%clk 0:02:46]} 8. Bxe7 {[%clk 0:02:49.7]} 8...
Qxe7 {[%clk 0:02:45.2]} 9. f4 {[%clk 0:02:45.4]} 9... c5 {[%clk 0:02:41.8]} 10.
Nf3 {[%clk 0:02:43.3]} 10... Nc6 {[%clk 0:02:39.8]} 11. O-O-O {[%clk 0:02:11.4]}
11... cxd4 {[%clk 0:02:34.7]} 12. Nxd4 {[%clk 0:02:11.1]} 12... Nc5 {[%clk
0:02:31.1]} 13. h5 {[%clk 0:01:45.9]} 13... Bd7 {[%clk 0:02:25.9]} 14. h6 {[%clk
0:01:45.3]} 14... g6 {[%clk 0:02:24.9]} 15. Nxc6 {[%clk 0:01:34.3]} 15... bxc6
{[%clk 0:02:22.6]} 16. Qh4 {[%clk 0:01:30.1]} 16... Rb8 {[%clk 0:02:12.3]} 17.
Qxe7+ {[%clk 0:01:26]} 17... Kxe7 {[%clk 0:02:11.7]} 18. g4 {[%clk 0:01:21.5]}
18... a5 {[%clk 0:02:10]} 19. Be2 {[%clk 0:01:12.1]} 19... Nb7 {[%clk
0:01:53.2]} 20. g5 {[%clk 0:00:57.7]} 20... c5 {[%clk 0:01:48.1]} 21. b3 {[%clk
0:00:56.3]} 21... Rgc8 {[%clk 0:01:43.5]} 22. Ba6 {[%clk 0:00:51]} 22... Rc6
{[%clk 0:01:36]} 23. Bb5 {[%clk 0:00:48.6]} 23... Rb6 {[%clk 0:01:35.2]} 24.
Bxd7 {[%clk 0:00:48.8]} 24... Kxd7 {[%clk 0:01:34.5]} 25. Na4 {[%clk 0:00:40]}
25... Ra6 {[%clk 0:01:30.8]} 26. c4 {[%clk 0:00:37.7]} 26... d4 {[%clk
0:01:26.2]} 27. Rd3 {[%clk 0:00:36.8]} 27... Nd8 {[%clk 0:01:20.4]} 28. Nxc5+
{[%clk 0:00:34.4]} 1-0

[Event "Betsys MČR v online bleskovém šachu 2021"]
[Site "Chess.com"]
[Date "2021.04.17"]
[Round "10"]
[White "NikolaKusova"]
[Black "VildaSt"]
[Result "0-1"]
[WhiteElo "1027"]
[BlackElo "1301"]
[TimeControl "180+1"]
[EndTime "10:38:53 PDT"]
[Termination "Uživatel VildaSt zvítězil na čas"]

1. e4 {[%clk 0:02:32.9]} 1... e5 {[%clk 0:02:58.3]} 2. Nf3 {[%clk 0:02:29.9]}
2... Nc6 {[%clk 0:02:58.1]} 3. d4 {[%clk 0:02:29.1]} 3... exd4 {[%clk
0:02:57.3]} 4. Bc4 {[%clk 0:02:27.5]} 4... Be7 {[%clk 0:02:45.6]} 5. O-O {[%clk
0:02:22.3]} 5... a6 {[%clk 0:02:42.4]} 6. Nxd4 {[%clk 0:02:16]} 6... Nxd4 {[%clk
0:02:41.4]} 7. Qxd4 {[%clk 0:02:14.8]} 7... Nf6 {[%clk 0:02:28.1]} 8. e5 {[%clk
0:02:09.1]} 8... c5 {[%clk 0:02:27.9]} 9. Qh4 {[%clk 0:01:55.5]} 9... Nd5 {[%clk
0:02:14.6]} 10. Bxd5 {[%clk 0:01:52.8]} 10... Bxh4 {[%clk 0:02:13.7]} 11. Nc3
{[%clk 0:01:45.3]} 11... O-O {[%clk 0:02:13.1]} 12. Re1 {[%clk 0:01:37.1]} 12...
d6 {[%clk 0:02:11.9]} 13. exd6 {[%clk 0:01:35.2]} 13... Qxd6 {[%clk 0:02:11.8]}
14. Re4 {[%clk 0:01:20.6]} 14... Bf6 {[%clk 0:02:06.5]} 15. Bf4 {[%clk
0:01:17.4]} 15... Qb6 {[%clk 0:01:59.6]} 16. Rae1 {[%clk 0:01:09]} 16... Bf5
{[%clk 0:01:57.3]} 17. R4e3 {[%clk 0:00:59.3]} 17... Qxb2 {[%clk 0:01:48.8]} 18.
Nd1 {[%clk 0:00:46.8]} 18... Qxc2 {[%clk 0:01:42.2]} 19. Bb3 {[%clk 0:00:37.7]}
19... Qd2 {[%clk 0:01:30.9]} 0-1

[Event "Betsys MČR v online bleskovém šachu 2021"]
[Site "Chess.com"]
[Date "2021.04.17"]
[Round "10"]
[White "Mimochodem"]
[Black "Dasty78"]
[Result "0-1"]
[WhiteElo "1792"]
[BlackElo "2022"]
[TimeControl "180+1"]
[EndTime "10:38:54 PDT"]
[Termination "Uživatel Dasty78 zvítězil po vzdání soupeře"]

1. e4 {[%clk 0:03:00.9]} 1... e6 {[%clk 0:02:59.7]} 2. Nf3 {[%clk 0:03:01.3]}
2... d5 {[%clk 0:02:59.6]} 3. exd5 {[%clk 0:03:01.5]} 3... exd5 {[%clk
0:02:59.2]} 4. d4 {[%clk 0:03:02]} 4... Bg4 {[%clk 0:02:58.8]} 5. c4 {[%clk
0:03:02.3]} 5... Nf6 {[%clk 0:02:47.2]} 6. Nc3 {[%clk 0:03:01.9]} 6... Nc6
{[%clk 0:02:42.6]} 7. Be3 {[%clk 0:03:01.8]} 7... Bb4 {[%clk 0:02:36]} 8. cxd5
{[%clk 0:02:56.2]} 8... Nxd5 {[%clk 0:02:33.2]} 9. Rc1 {[%clk 0:02:55.6]} 9...
O-O {[%clk 0:02:32.2]} 10. Be2 {[%clk 0:02:53.8]} 10... Re8 {[%clk 0:02:19.6]}
11. O-O {[%clk 0:02:50.1]} 11... Nxe3 {[%clk 0:02:16.2]} 12. fxe3 {[%clk
0:02:43.5]} 12... Rxe3 {[%clk 0:02:15.9]} 13. h3 {[%clk 0:02:35.2]} 13... Bxf3
{[%clk 0:01:45.5]} 14. Bxf3 {[%clk 0:02:24.7]} 14... Qxd4 {[%clk 0:01:45]} 15.
Qxd4 {[%clk 0:02:22.3]} 15... Nxd4 {[%clk 0:01:44.5]} 16. Bxb7 {[%clk
0:02:19.3]} 16... Rb8 {[%clk 0:01:44.1]} 17. Bd5 {[%clk 0:02:17.7]} 17... Bxc3
{[%clk 0:01:36.1]} 18. Rxf7 {[%clk 0:02:10.9]} 18... Kh8 {[%clk 0:01:25.7]} 19.
Rxc3 {[%clk 0:02:04.5]} 19... Ne2+ {[%clk 0:01:25]} 20. Kf2 {[%clk 0:02:03.7]}
20... Nxc3 {[%clk 0:01:24.1]} 21. Kxe3 {[%clk 0:02:03.3]} 21... Nxd5+ {[%clk
0:01:23.9]} 22. Kd4 {[%clk 0:02:02.8]} 22... Rd8 {[%clk 0:01:16.6]} 23. Kc5
{[%clk 0:01:58.6]} 23... Kg8 {[%clk 0:01:15.8]} 24. Rf3 {[%clk 0:01:52.2]} 24...
Rd6 {[%clk 0:01:14.3]} 25. Ra3 {[%clk 0:01:48.2]} 25... a6 {[%clk 0:01:06.1]}
26. Rf3 {[%clk 0:01:40]} 26... Nf6 {[%clk 0:01:02.5]} 27. g4 {[%clk 0:01:31.9]}
27... h6 {[%clk 0:01:00.7]} 28. Rf4 {[%clk 0:01:28.2]} 28... Kf7 {[%clk
0:00:58.9]} 29. h4 {[%clk 0:01:28.6]} 29... Ke6 {[%clk 0:00:56.3]} 30. g5 {[%clk
0:01:28.3]} 30... hxg5 {[%clk 0:00:54.9]} 31. hxg5 {[%clk 0:01:27.9]} 31... Ke5
{[%clk 0:00:47]} 32. Rf1 {[%clk 0:01:21.3]} 32... Ne4+ {[%clk 0:00:45.1]} 33.
Kc4 {[%clk 0:01:18.8]} 33... Nd2+ {[%clk 0:00:44.6]} 0-1

[Event "Betsys MČR v online bleskovém šachu 2021"]
[Site "Chess.com"]
[Date "2021.04.17"]
[Round "10"]
[White "HonzaVykouk"]
[Black "MBorkovec"]
[Result "1-0"]
[WhiteElo "2677"]
[BlackElo "2282"]
[TimeControl "180+1"]
[EndTime "10:38:55 PDT"]
[Termination "Uživatel HonzaVykouk zvítězil po vzdání soupeře"]

1. e4 {[%clk 0:03:00.9]} 1... e5 {[%clk 0:02:59.5]} 2. Nf3 {[%clk 0:02:56.9]}
2... Nc6 {[%clk 0:02:59.5]} 3. Bc4 {[%clk 0:02:57.3]} 3... Nf6 {[%clk
0:02:59.2]} 4. Ng5 {[%clk 0:02:57.6]} 4... d5 {[%clk 0:02:59.2]} 5. exd5 {[%clk
0:02:58.5]} 5... Na5 {[%clk 0:02:59.2]} 6. Bb5+ {[%clk 0:02:59.1]} 6... c6
{[%clk 0:02:59.8]} 7. dxc6 {[%clk 0:03:00]} 7... bxc6 {[%clk 0:03:00.1]} 8. Be2
{[%clk 0:03:00.7]} 8... h6 {[%clk 0:02:59.4]} 9. Nh3 {[%clk 0:03:01.4]} 9... Bd6
{[%clk 0:02:58.6]} 10. d3 {[%clk 0:03:01.4]} 10... O-O {[%clk 0:02:57.3]} 11.
Nc3 {[%clk 0:03:01.6]} 11... Nd5 {[%clk 0:02:57.3]} 12. Bf3 {[%clk 0:02:57.7]}
12... Be6 {[%clk 0:02:56.4]} 13. Ng1 {[%clk 0:02:54.6]} 13... f5 {[%clk
0:02:56.1]} 14. Nge2 {[%clk 0:02:54.5]} 14... Nb7 {[%clk 0:02:47.1]} 15. O-O
{[%clk 0:02:49.6]} 15... Qc7 {[%clk 0:02:43.5]} 16. g3 {[%clk 0:02:49.3]} 16...
Rae8 {[%clk 0:02:36.8]} 17. Bg2 {[%clk 0:02:48.5]} 17... Bc5 {[%clk 0:02:25.3]}
18. d4 {[%clk 0:02:42.7]} 18... Nxc3 {[%clk 0:02:19.8]} 19. bxc3 {[%clk
0:02:42.2]} 19... Bd6 {[%clk 0:02:19.9]} 20. dxe5 {[%clk 0:02:37.8]} 20... Bxe5
{[%clk 0:02:19.5]} 21. Bf4 {[%clk 0:02:38.3]} 21... Bc4 {[%clk 0:02:15.3]} 22.
Re1 {[%clk 0:02:12]} 22... Rd8 {[%clk 0:01:50.2]} 23. Bxe5 {[%clk 0:01:58.2]}
23... Qxe5 {[%clk 0:01:49.1]} 24. Nd4 {[%clk 0:01:58]} 24... Qc5 {[%clk
0:01:31.3]} 25. Qc1 {[%clk 0:01:55.3]} 25... Na5 {[%clk 0:01:18.8]} 26. Nb3
{[%clk 0:01:40.6]} 26... Qb5 {[%clk 0:01:10.8]} 27. Qf4 {[%clk 0:01:29.9]} 27...
Bd5 {[%clk 0:00:50.8]} 28. Nd4 {[%clk 0:01:18.4]} 28... Qc4 {[%clk 0:00:45.9]}
29. Bxd5+ {[%clk 0:01:17.8]} 29... cxd5 {[%clk 0:00:46.1]} 30. Ne6 {[%clk
0:01:17.3]} 30... Qxf4 {[%clk 0:00:39.9]} 31. gxf4 {[%clk 0:01:17]} 1-0

[Event "Betsys MČR v online bleskovém šachu 2021"]
[Site "Chess.com"]
[Date "2021.04.17"]
[Round "10"]
[White "sharpi5135"]
[Black "Skalicky"]
[Result "1/2-1/2"]
[WhiteElo "735"]
[BlackElo "715"]
[TimeControl "180+1"]
[EndTime "10:38:57 PDT"]
[Termination "Remíza opakováním pozice"]

1. e4 {[%clk 0:02:51.3]} 1... c5 {[%clk 0:02:59.5]} 2. Bc4 {[%clk 0:02:49.4]}
2... e6 {[%clk 0:02:59.2]} 3. Nf3 {[%clk 0:02:47.1]} 3... d5 {[%clk 0:02:59.1]}
4. exd5 {[%clk 0:02:45.4]} 4... exd5 {[%clk 0:02:58.6]} 5. Bb5+ {[%clk
0:02:42.6]} 5... Bd7 {[%clk 0:02:58.5]} 6. Bxd7+ {[%clk 0:02:41.6]} 6... Nxd7
{[%clk 0:02:58.4]} 7. d3 {[%clk 0:02:38.3]} 7... Ngf6 {[%clk 0:02:57.6]} 8. Bg5
{[%clk 0:02:34.7]} 8... Be7 {[%clk 0:02:57.4]} 9. Qe2 {[%clk 0:02:32.2]} 9...
O-O {[%clk 0:02:56.3]} 10. O-O {[%clk 0:02:30]} 10... Re8 {[%clk 0:02:48.2]} 11.
Qd2 {[%clk 0:02:13.1]} 11... Qc7 {[%clk 0:02:39.6]} 12. Bh6 {[%clk 0:02:05.5]}
12... gxh6 {[%clk 0:02:17.7]} 13. Nh4 {[%clk 0:01:52]} 13... Bf8 {[%clk
0:02:09]} 14. Nf5 {[%clk 0:01:44.4]} 14... Bg7 {[%clk 0:02:00.7]} 15. Nxh6+
{[%clk 0:01:39.1]} 15... Bxh6 {[%clk 0:01:58.3]} 16. Qxh6 {[%clk 0:01:36.9]}
16... Re6 {[%clk 0:01:41.9]} 17. Nc3 {[%clk 0:01:27.8]} 17... Rae8 {[%clk
0:01:24.1]} 18. g3 {[%clk 0:01:19.4]} 18... d4 {[%clk 0:01:03.1]} 19. Nd5 {[%clk
0:01:10.6]} 19... Nxd5 {[%clk 0:01:00.2]} 20. Qg5+ {[%clk 0:01:02.9]} 20... Kf8
{[%clk 0:00:46.2]} 21. Qf5 {[%clk 0:00:57.1]} 21... Kg8 {[%clk 0:00:43]} 22.
Qg5+ {[%clk 0:00:55.5]} 22... Kf8 {[%clk 0:00:42.3]} 23. Qf5 {[%clk 0:00:54.8]}
23... Kg8 {[%clk 0:00:41.7]} 24. Qg5+ {[%clk 0:00:54]} 1/2-1/2

[Event "Betsys MČR v online bleskovém šachu 2021"]
[Site "Chess.com"]
[Date "2021.04.17"]
[Round "10"]
[White "MatejKopecky13"]
[Black "doktorovak"]
[Result "0-1"]
[WhiteElo "1493"]
[BlackElo "1671"]
[TimeControl "180+1"]
[EndTime "10:38:59 PDT"]
[Termination "Uživatel doktorovak zvítězil po vzdání soupeře"]

1. e4 {[%clk 0:03:00.9]} 1... c5 {[%clk 0:02:58.9]} 2. Nf3 {[%clk 0:03:00.4]}
2... Nc6 {[%clk 0:02:58.8]} 3. Nc3 {[%clk 0:03:00.8]} 3... e6 {[%clk 0:02:58.6]}
4. Bc4 {[%clk 0:03:01.4]} 4... a6 {[%clk 0:02:58.5]} 5. a4 {[%clk 0:03:01.7]}
5... Nge7 {[%clk 0:02:56.8]} 6. d3 {[%clk 0:02:59.9]} 6... Ng6 {[%clk
0:02:54.5]} 7. Bg5 {[%clk 0:02:59.6]} 7... Qb6 {[%clk 0:02:50.8]} 8. b3 {[%clk
0:02:56]} 8... Be7 {[%clk 0:02:49.6]} 9. Bxe7 {[%clk 0:02:55.5]} 9... Ncxe7
{[%clk 0:02:49.5]} 10. e5 {[%clk 0:02:52.2]} 10... Nc6 {[%clk 0:02:44.4]} 11.
Qe2 {[%clk 0:02:50.2]} 11... Qb4 {[%clk 0:02:41.8]} 12. Qd2 {[%clk 0:02:45.6]}
12... Ncxe5 {[%clk 0:02:35.8]} 13. Nxe5 {[%clk 0:02:46.1]} 13... Nxe5 {[%clk
0:02:35.7]} 14. O-O {[%clk 0:02:46.8]} 14... Nxc4 {[%clk 0:02:33.1]} 15. dxc4
{[%clk 0:02:47.7]} 15... O-O {[%clk 0:02:32.5]} 16. Rae1 {[%clk 0:02:46.3]}
16... d5 {[%clk 0:02:00.6]} 17. cxd5 {[%clk 0:02:28.2]} 17... exd5 {[%clk
0:02:00.1]} 18. Re3 {[%clk 0:02:26.8]} 18... d4 {[%clk 0:01:59.7]} 19. Rg3
{[%clk 0:02:26.8]} 19... dxc3 {[%clk 0:01:54.5]} 20. Qh6 {[%clk 0:02:27.3]}
20... Qd4 {[%clk 0:01:54]} 21. h3 {[%clk 0:02:27.6]} 21... Kh8 {[%clk
0:01:52.4]} 22. Qg5 {[%clk 0:02:26.7]} 22... h6 {[%clk 0:01:46.6]} 23. Qc1
{[%clk 0:02:24.6]} 23... Bf5 {[%clk 0:01:42.5]} 24. Rd1 {[%clk 0:02:24.2]} 24...
Qe4 {[%clk 0:01:36.8]} 25. Re1 {[%clk 0:02:21.5]} 25... Qxc2 {[%clk 0:01:35.8]}
26. Qf4 {[%clk 0:02:20.2]} 26... Bg6 {[%clk 0:01:34]} 27. h4 {[%clk 0:02:16.5]}
27... h5 {[%clk 0:01:32.7]} 28. Re7 {[%clk 0:02:11.2]} 28... Qxb3 {[%clk
0:01:30.3]} 29. Qe5 {[%clk 0:02:04.2]} 29... Rg8 {[%clk 0:01:10.5]} 30. Rg5
{[%clk 0:01:51.2]} 30... Qd1+ {[%clk 0:01:04.9]} 31. Kh2 {[%clk 0:01:49.3]}
31... f6 {[%clk 0:01:00.9]} 32. Qc7 {[%clk 0:01:44.2]} 32... fxg5 {[%clk
0:00:54.6]} 33. hxg5 {[%clk 0:01:43.7]} 33... Rad8 {[%clk 0:00:51.8]} 34. Re6
{[%clk 0:01:37.7]} 34... Bf5 {[%clk 0:00:48.8]} 35. Rh6+ {[%clk 0:01:27.9]}
35... gxh6 {[%clk 0:00:42.9]} 36. gxh6 {[%clk 0:01:28.8]} 36... Qd6+ {[%clk
0:00:38.9]} 0-1